[Event "African Online-ch Women 2021"]
[Site "Online"]
[Date "2021.02.01"]
[Round "8.12"]
[White "Du Plessis, Anika"]
[Black "Farnela, Nuzela Zacarias Musi"]
[Result "1-0"]
[ECO "C45"]
[WhiteElo "1541"]
[BlackElo "1431"]
[Annotator "NA RC"]
[PlyCount "83"]
[EventDate "2021.02.01"]
[EventType "swiss"]
[EventCountry "NET"]
[SourceTitle "playchess.com"]
[Source "ChessBase"]
[SourceQuality "1"]
[TimeControl "1500+10"]

1. e4 {[%emt 0:00:00]} e5 {[%emt 0:00:08]} 2. Nf3 {[%emt 0:00:03]} Nc6 {[%emt 0:00:10]} 3. d4 {[%emt 0:00:02]} exd4 {[%emt 0:00:13]} 4. Nxd4 {[%emt 0:00:02]} Nxd4 {[%emt 0:00:10]} 5. Qxd4 {[%emt 0:00:03]} d6 {[%emt 0:00:17]} 6. Nc3 {[%emt 0:00:19]} Be6 {[%emt 0:00:12]} 7. Be2 {[%emt 0:00:14]} Nf6 {[%emt 0:00:07]} 8. O-O {[%emt 0:00:04]} Be7 {[%emt 0:00:24]} 9. e5 {[%emt 0:03:25]} dxe5 {[%emt 0:00:31]} 10. Qxe5 {[%emt 0:00:04]} Bd6 {[%emt 0:00:07]} 11. Qb5+ {[%emt 0:00:38]} Qd7 {[%emt 0:01:18]} 12. Qxb7 {[%emt 0:01:36]} O-O {[%emt 0:00:28]} 13. Bb5 {[%emt 0:01:01]} Qd8 {[%emt 0:01:20]} 14. Bg5 {[%emt 0:01:22]} h6 {[%emt 0:00:30]} 15. Bh4 {[%emt 0:00:18]} Be7 {[%emt 0:00:29]} 16. Bc6 {[%emt 0:00:43]} Qc8 {[%emt 0:00:25]} 17. Qxa8 {[%emt 0:00:07]} Qxa8 {[%emt 0:00:08]} 18. Bxa8 {[%emt 0:00:02]} Rxa8 {[%emt 0:00:05]} 19. Rfe1 {[%emt 0:01:48]} Re8 {[%emt 0:00:09]} 20. Nb5 {[%emt 0:00:11]} Rb8 {[%emt 0:00:50]} 21. Nxc7 {[%emt 0:00:07]} Rxb2 {[%emt 0:00:21]} 22. Nxe6 {[%emt 0:00:05]} fxe6 {[%emt 0:00:11]} 23. Rxe6 {[%emt 0:00:06]} Kf7 {[%emt 0:00:05]} 24. Rae1 {[%emt 0:00:04]} Bd8 {[%emt 0:00:15]} 25. Ra6 {[%emt 0:00:17]} Bb6 {[%emt 0:00:20]} 26. h3 {[%emt 0:01:58]} Rxc2 {[%emt 0:00:19]} 27. Ra3 {[%emt 0:00:34]} g5 {[%emt 0:00:48]} 28. Bg3 {[%emt 0:00:11]} Nh5 {[%emt 0:00:36]} 29. Rf3+ {[%emt 0:00:11]} Kg6 {[%emt 0:00:30]} 30. Re6+ {[%emt 0:00:30]} Kh7 {[%emt 0:01:37]} 31. Be5 {[%emt 0:01:43]} Rc1+ {[%emt 0:00:41]} 32. Kh2 {[%emt 0:00:04]} Nf4 {[%emt 0:00:13]} 33. Bxf4 {[%emt 0:00:18]} gxf4 {[%emt 0:00:07]} 34. h4 {[%emt 0:00:42]} Rc2 {[%emt 0:00:22]} 35. Kh3 {[%emt 0:00:23]} Rc1 {[%emt 0:01:57]} 36. Rxf4 {[%emt 0:00:19]} h5 {[%emt 0:00:48]} 37. g4 {[%emt 0:00:22]} Rc3+ {[%emt 0:01:11]} 38. f3 {[%emt 0:01:01]} hxg4+ {[%emt 0:00:18]} 39. Kxg4 {[%emt 0:00:05]} Bc7 {[%emt 0:00:12]} 40. Rf7+ {[%emt 0:00:12]} Kg8 {[%emt 0:00:09]} 41. Rd7 {[%emt 0:00:04]} Rc2 {[%emt 0:00:29]} 42. Re8# {[%emt 0:00:05]} 1-0

[Event "African Online-ch Women 2021"]
[Site "Online"]
[Date "2021.02.01"]
[Round "8.13"]
[White "Jambo, Linda"]
[Black "Leboela, Maboloko"]
[Result "1-0"]
[ECO "C54"]
[WhiteElo "1478"]
[BlackElo "1296"]
[Annotator "NA RC"]
[PlyCount "134"]
[EventDate "2021.02.01"]
[EventType "swiss"]
[EventCountry "NET"]
[SourceTitle "playchess.com"]
[Source "ChessBase"]
[SourceQuality "1"]
[TimeControl "1500+10"]

1. e4 {[%emt 0:00:00]} e5 {[%emt 0:00:10]} 2. Nf3 {[%emt 0:00:06]} Nc6 {[%emt 0:00:03]} 3. Bc4 {[%emt 0:00:10]} Bc5 {[%emt 0:00:05]} 4. c3 {[%emt 0:00:05]} Nf6 {[%emt 0:00:13]} 5. d4 {[%emt 0:00:31]} exd4 {[%emt 0:00:07]} 6. cxd4 {[%emt 0:00:04]} Bb4+ {[%emt 0:00:07]} 7. Nc3 {[%emt 0:00:07]} Nxe4 {[%emt 0:00:25]} 8. O-O {[%emt 0:00:04]} Nxc3 {[%emt 0:00:08]} 9. bxc3 {[%emt 0:00:04]} Be7 {[%emt 0:00:14]} 10. Qb3 {[%emt 0:01:19]} O-O {[%emt 0:00:08]} 11. Re1 {[%emt 0:00:03]} Na5 {[%emt 0:00:10]} 12. Qa4 {[%emt 0:01:41]} Nxc4 {[%emt 0:00:12]} 13. Qxc4 {[%emt 0:00:03]} d5 {[%emt 0:00:07]} 14. Qe2 {[%emt 0:00:17]} Bg4 {[%emt 0:00:04]} 15. Qxe7 {[%emt 0:00:54]} Qxe7 {[%emt 0:00:06]} 16. Rxe7 {[%emt 0:00:06]} Bxf3 {[%emt 0:00:21]} 17. gxf3 {[%emt 0:00:04]} Rac8 {[%emt 0:00:04]} 18. Bf4 {[%emt 0:00:09]} f6 {[%emt 0:00:32]} 19. Rxc7 {[%emt 0:00:20]} Rxc7 {[%emt 0:00:03]} 20. Bxc7 {[%emt 0:00:04]} Rc8 {[%emt 0:00:02]} 21. Ba5 {[%emt 0:00:03]} b6 {[%emt 0:00:03]} 22. Bb4 {[%emt 0:00:09]} a5 {[%emt 0:00:03]} 23. Bd6 {[%emt 0:00:15]} Rxc3 {[%emt 0:00:03]} 24. Rb1 {[%emt 0:00:23]} Rxf3 {[%emt 0:00:19]} 25. Rxb6 {[%emt 0:00:04]} Rd3 {[%emt 0:00:03]} 26. Bc5 {[%emt 0:00:09]} Rd2 {[%emt 0:00:25]} 27. a3 {[%emt 0:00:04]} Kf7 {[%emt 0:00:08]} 28. Ra6 {[%emt 0:00:04]} h5 {[%emt 0:00:21]} 29. Rxa5 {[%emt 0:00:03]} h4 {[%emt 0:00:02]} 30. Ra7+ {[%emt 0:01:04]} Kg6 {[%emt 0:00:07]} 31. Kg2 {[%emt 0:00:04]} Kh6 {[%emt 0:00:07]} 32. a4 {[%emt 0:00:10]} g5 {[%emt 0:00:04]} 33. h3 {[%emt 0:00:36]} f5 {[%emt 0:00:12]} 34. Bf8+ {[%emt 0:00:13]} Kg6 {[%emt 0:00:08]} 35. Ra6+ {[%emt 0:00:46]} Kf7 {[%emt 0:00:12]} 36. Bc5 {[%emt 0:00:30]} g4 {[%emt 0:00:10]} 37. hxg4 {[%emt 0:00:40]} fxg4 {[%emt 0:00:04]} 38. Rh6 {[%emt 0:01:42]} h3+ {[%emt 0:00:32]} 39. Kg3 {[%emt 0:00:13]} Kg7 {[%emt 0:00:16]} 40. Rh4 {[%emt 0:00:40]} Kf6 {[%emt 0:00:27]} 41. Rxg4 {[%emt 0:00:04]} h2 {[%emt 0:00:04]} 42. Rh4 {[%emt 0:00:43]} Ra2 {[%emt 0:00:16]} 43. Rxh2 {[%emt 0:00:10]} Rxa4 {[%emt 0:00:03]} 44. Kf4 {[%emt 0:00:09]} Ra2 {[%emt 0:00:17]} 45. Ke3 {[%emt 0:01:01]} Rb2 {[%emt 0:00:21]} 46. Rh6+ {[%emt 0:00:06]} Kg5 {[%emt 0:00:03]} 47. Rd6 {[%emt 0:00:03]} Rb3+ {[%emt 0:00:06]} 48. Ke2 {[%emt 0:00:06]} Rb2+ {[%emt 0:00:02]} 49. Kf3 {[%emt 0:00:03]} Rb3+ {[%emt 0:00:03]} 50. Kg2 {[%emt 0:00:03]} Rd3 {[%emt 0:00:11]} 51. Rxd5+ {[%emt 0:00:07]} Kf4 {[%emt 0:00:02]} 52. Rd8 {[%emt 0:01:02]} Rb3 {[%emt 0:00:10]} 53. d5 {[%emt 0:00:19]} Ke5 {[%emt 0:00:08]} 54. d6 {[%emt 0:00:05]} Rc3 {[%emt 0:00:09]} 55. Be3 {[%emt 0:00:19]} Rd3 {[%emt 0:00:04]} 56. d7 {[%emt 0:00:04]} Ke6 {[%emt 0:00:03]} 57. Kf3 {[%emt 0:00:49]} Rd6 {[%emt 0:00:08]} 58. Ke4 {[%emt 0:00:44]} Ke7 {[%emt 0:00:13]} 59. Bc5 {[%emt 0:01:20]} Kxd8 {[%emt 0:00:07]} 60. Bxd6 {[%emt 0:00:03]} Kxd7 {[%emt 0:00:02]} 61. Ke5 {[%emt 0:00:05]} Ke8 {[%emt 0:00:03]} 62. f4 {[%emt 0:00:02]} Kf7 {[%emt 0:00:02]} 63. f5 {[%emt 0:00:03]} Ke8 {[%emt 0:00:02]} 64. f6 {[%emt 0:00:03]} Kf7 {[%emt 0:00:02]} 65. Kf5 {[%emt 0:00:23]} Ke8 {[%emt 0:00:03]} 66. Ke6 {[%emt 0:00:04]} Kd8 {[%emt 0:00:07]} 67. f7 {[%emt 0:00:05]} Kc8 {[%emt 0:00:03]} 1-0

[Event "African Online-ch Women 2021"]
[Site "Online"]
[Date "2021.02.01"]
[Round "8.15"]
[White "Malehloa, Likhomo"]
[Black "Karania, Saloni"]
[Result "1-0"]
[ECO "D00"]
[WhiteElo "1331"]
[BlackElo "1304"]
[Annotator "NA RC"]
[PlyCount "103"]
[EventDate "2021.02.01"]
[EventType "swiss"]
[EventCountry "NET"]
[SourceTitle "playchess.com"]
[Source "ChessBase"]
[SourceQuality "1"]
[TimeControl "1500+10"]

1. d4 {[%emt 0:00:00]} d5 {[%emt 0:00:04]} 2. Nc3 {[%emt 0:00:10]} Bf5 {[%emt 0:00:06]} 3. Bf4 {[%emt 0:00:08]} c6 {[%emt 0:00:12]} 4. e3 {[%emt 0:00:43]} Nf6 {[%emt 0:00:06]} 5. h3 {[%emt 0:00:24]} g6 {[%emt 0:00:27]} 6. Be2 {[%emt 0:00:42]} Bg7 {[%emt 0:00:22]} 7. Qd2 {[%emt 0:00:23]} Nbd7 {[%emt 0:00:48]} 8. O-O-O {[%emt 0:00:29]} Ne4 {[%emt 0:00:38]} 9. Nxe4 {[%emt 0:00:08]} Bxe4 {[%emt 0:00:04]} 10. f3 {[%emt 0:00:05]} Bf5 {[%emt 0:00:28]} 11. g4 {[%emt 0:00:15]} Be6 {[%emt 0:00:14]} 12. h4 {[%emt 0:00:51]} f5 {[%emt 0:00:40]} 13. Qb4 {[%emt 0:00:51]} Qb6 {[%emt 0:01:27]} 14. Qxb6 {[%emt 0:00:11]} Nxb6 {[%emt 0:00:02]} 15. a3 {[%emt 0:00:27]} Rc8 {[%emt 0:01:15]} 16. g5 {[%emt 0:00:30]} c5 {[%emt 0:01:36]} 17. Be5 {[%emt 0:00:15]} Bxe5 {[%emt 0:00:35]} 18. dxe5 {[%emt 0:00:06]} c4 {[%emt 0:00:31]} 19. f4 {[%emt 0:00:08]} Kf7 {[%emt 0:00:23]} 20. Nf3 {[%emt 0:00:06]} Rhd8 {[%emt 0:00:35]} 21. h5 {[%emt 0:00:07]} Rh8 {[%emt 0:00:55]} 22. Nd4 {[%emt 0:00:07]} a6 {[%emt 0:00:52]} 23. Rh2 {[%emt 0:00:06]} Kg7 {[%emt 0:00:29]} 24. Nxe6+ {[%emt 0:00:06]} Kf7 {[%emt 0:00:21]} 25. Nd4 {[%emt 0:00:03]} Na4 {[%emt 0:01:12]} 26. Rdh1 {[%emt 0:00:14]} Kg7 {[%emt 0:01:26]} 27. hxg6 {[%emt 0:00:06]} hxg6 {[%emt 0:00:11]} 28. Ne6+ {[%emt 0:00:06]} Kf7 {[%emt 0:00:09]} 29. Rxh8 {[%emt 0:00:09]} Rxh8 {[%emt 0:00:05]} 30. Rxh8 {[%emt 0:00:04]} Kxe6 {[%emt 0:00:02]} 31. Rb8 {[%emt 0:00:08]} b5 {[%emt 0:00:03]} 32. Rb6+ {[%emt 0:00:03]} Kd7 {[%emt 0:00:06]} 33. Rxa6 {[%emt 0:00:02]} Nc5 {[%emt 0:00:07]} 34. Rxg6 {[%emt 0:00:15]} Ne4 {[%emt 0:00:08]} 35. Rg8 {[%emt 0:00:07]} Ng3 {[%emt 0:00:08]} 36. Bd1 {[%emt 0:00:04]} e6 {[%emt 0:00:13]} 37. Rb8 {[%emt 0:00:16]} Ke7 {[%emt 0:00:10]} 38. Rxb5 {[%emt 0:00:03]} Nf1 {[%emt 0:00:13]} 39. a4 {[%emt 0:00:07]} Nxe3 {[%emt 0:00:03]} 40. a5 {[%emt 0:00:02]} d4 {[%emt 0:00:21]} 41. a6 {[%emt 0:00:04]} Nd5 {[%emt 0:00:01]} 42. a7 {[%emt 0:00:05]} Nc7 {[%emt 0:00:07]} 43. Rb7 {[%emt 0:00:03]} Kd8 {[%emt 0:00:02]} 44. Rxc7 {[%emt 0:00:03]} Kxc7 {[%emt 0:00:01]} 45. a8=Q {[%emt 0:00:05]} d3 {[%emt 0:00:17]} 46. Qa7+ {[%emt 0:00:06]} Kc8 {[%emt 0:00:02]} 47. Qc5+ {[%emt 0:00:04]} Kd8 {[%emt 0:00:05]} 48. Qxc4 {[%emt 0:00:02]} dxc2 {[%emt 0:00:05]} 49. Bxc2 {[%emt 0:00:09]} Ke7 {[%emt 0:00:03]} 50. b4 {[%emt 0:00:04]} Kf7 {[%emt 0:00:09]} 51. b5 {[%emt 0:00:02]} Kg7 {[%emt 0:00:07]} 52. b6 {[%emt 0:00:03]} 1-0

[Event "African Online-ch Women 2021"]
[Site "Online"]
[Date "2021.02.01"]
[Round "9.5"]
[White "Madelta Glenda"]
[Black "Shah, Riya"]
[Result "0-1"]
[ECO "B27"]
[WhiteElo "1420"]
[BlackElo "1559"]
[Annotator "NA RC"]
[PlyCount "142"]
[EventDate "2021.02.01"]
[EventType "swiss"]
[EventCountry "NET"]
[SourceTitle "playchess.com"]
[Source "ChessBase"]
[SourceQuality "1"]
[TimeControl "1500+10"]

1. d4 {[%emt 0:00:00]} g6 {[%emt 0:00:04]} 2. Nc3 {[%emt 0:00:06]} Bg7 {[%emt 0:00:02]} 3. e4 {[%emt 0:00:08]} c5 {[%emt 0:00:09]} 4. dxc5 {[%emt 0:00:09]} Qa5 {[%emt 0:00:25]} 5. Bd2 {[%emt 0:00:05]} Qxc5 {[%emt 0:00:04]} 6. Nf3 {[%emt 0:00:06]} Qb6 {[%emt 0:00:34]} 7. Rb1 {[%emt 0:00:14]} d6 {[%emt 0:00:13]} 8. Bd3 {[%emt 0:00:11]} Nc6 {[%emt 0:00:06]} 9. h3 {[%emt 0:00:39]} Nf6 {[%emt 0:00:43]} 10. O-O {[%emt 0:00:06]} O-O {[%emt 0:00:03]} 11. Be3 {[%emt 0:00:05]} Qd8 {[%emt 0:00:07]} 12. Qd2 {[%emt 0:00:03]} Be6 {[%emt 0:02:13]} 13. Bh6 {[%emt 0:02:11]} d5 {[%emt 0:01:36]} 14. Bxg7 {[%emt 0:01:51]} Kxg7 {[%emt 0:00:10]} 15. Qf4 {[%emt 0:03:09]} Nh5 {[%emt 0:03:25]} 16. Qh4 {[%emt 0:02:09]} h6 {[%emt 0:02:36]} 17. Rfd1 {[%emt 0:01:25]} d4 {[%emt 0:01:24]} 18. Ne2 {[%emt 0:00:20]} f6 {[%emt 0:01:35]} 19. g4 {[%emt 0:00:15]} g5 {[%emt 0:00:54]} 20. Qxh5 {[%emt 0:02:07]} Bf7 {[%emt 0:00:06]} 21. Qxf7+ {[%emt 0:03:54]} Kxf7 {[%emt 0:02:20]} 22. Nexd4 {[%emt 0:00:20]} Qb6 {[%emt 0:00:48]} 23. Bc4+ {[%emt 0:00:32]} Kg6 {[%emt 0:00:44]} 24. Ne6 {[%emt 0:00:41]} Rfe8 {[%emt 0:02:01]} 25. a3 {[%emt 0:00:32]} Ne5 {[%emt 0:01:23]} 26. Nxe5+ {[%emt 0:03:03]} fxe5 {[%emt 0:00:03]} 27. Kg2 {[%emt 0:00:09]} Rac8 {[%emt 0:00:09]} 28. Bb3 {[%emt 0:00:18]} Qa6 {[%emt 0:02:25]} 29. c3 {[%emt 0:01:54]} Rc6 {[%emt 0:00:15]} 30. Nd8 {[%emt 0:00:14]} Rf6 {[%emt 0:00:50]} 31. Rd2 {[%emt 0:03:04]} Qb6 {[%emt 0:00:06]} 32. Bf7+ {[%emt 0:00:07]} Rxf7 {[%emt 0:00:09]} 33. Nxf7 {[%emt 0:00:03]} Kxf7 {[%emt 0:00:01]} 34. Rbd1 {[%emt 0:00:04]} Qc6 {[%emt 0:00:05]} 35. f3 {[%emt 0:00:04]} a6 {[%emt 0:00:20]} 36. Kf1 {[%emt 0:00:05]} Rc8 {[%emt 0:00:04]} 37. Kg2 {[%emt 0:00:08]} Qe6 {[%emt 0:00:31]} 38. Kf2 {[%emt 0:00:08]} Rc6 {[%emt 0:00:05]} 39. Ke2 {[%emt 0:00:06]} Rb6 {[%emt 0:00:05]} 40. Rc1 {[%emt 0:00:13]} Rd6 {[%emt 0:00:08]} 41. Rcd1 {[%emt 0:00:05]} Qc4+ {[%emt 0:00:06]} 42. Kf2 {[%emt 0:00:11]} Rxd2+ {[%emt 0:00:04]} 43. Rxd2 {[%emt 0:00:03]} Ke6 {[%emt 0:00:02]} 44. Ke1 {[%emt 0:00:03]} Qa2 {[%emt 0:00:05]} 45. Kf2 {[%emt 0:00:04]} Qb1 {[%emt 0:00:06]} 46. Kg2 {[%emt 0:00:20]} Qc1 {[%emt 0:00:18]} 47. Re2 {[%emt 0:00:08]} b5 {[%emt 0:00:01]} 48. Kg3 {[%emt 0:00:12]} Qf4+ {[%emt 0:00:03]} 49. Kg2 {[%emt 0:00:03]} Kd6 {[%emt 0:00:06]} 50. Kf1 {[%emt 0:00:15]} Kc5 {[%emt 0:00:03]} 51. Kg2 {[%emt 0:00:03]} Kc4 {[%emt 0:00:02]} 52. Rc2 {[%emt 0:00:14]} Kb3 {[%emt 0:00:05]} 53. Re2 {[%emt 0:00:04]} Qc1 {[%emt 0:00:03]} 54. Rf2 {[%emt 0:00:18]} a5 {[%emt 0:00:45]} 55. Re2 {[%emt 0:00:10]} a4 {[%emt 0:00:03]} 56. Rf2 {[%emt 0:00:10]} Qxb2 {[%emt 0:00:11]} 57. Rxb2+ {[%emt 0:00:29]} Kxb2 {[%emt 0:00:04]} 58. h4 {[%emt 0:00:02]} gxh4 {[%emt 0:00:03]} 59. Kh3 {[%emt 0:00:02]} Kxa3 {[%emt 0:00:01]} 60. Kxh4 {[%emt 0:00:02]} Kb3 {[%emt 0:00:01]} 61. Kh5 {[%emt 0:00:02]} a3 {[%emt 0:00:02]} 62. Kxh6 {[%emt 0:00:02]} a2 {[%emt 0:00:01]} 63. g5 {[%emt 0:00:02]} a1=Q {[%emt 0:00:02]} 64. g6 {[%emt 0:00:02]} Qxc3 {[%emt 0:00:06]} 65. g7 {[%emt 0:00:05]} Qc8 {[%emt 0:00:02]} 66. Kh7 {[%emt 0:00:09]} Kc3 {[%emt 0:00:02]} 67. g8=Q {[%emt 0:00:09]} Qxg8+ {[%emt 0:00:01]} 68. Kxg8 {[%emt 0:00:03]} b4 {[%emt 0:00:02]} 69. Kf7 {[%emt 0:00:02]} Kd4 {[%emt 0:00:01]} 70. Kxe7 {[%emt 0:00:04]} b3 {[%emt 0:00:01]} 71. Ke6 {[%emt 0:00:02]} b2 {[%emt 0:00:02]} 0-1

[Event "African Online-ch Women 2021"]
[Site "Online"]
[Date "2021.02.01"]
[Round "9.6"]
[White "Francis, Onkemetse"]
[Black "Caxita, Esperanca"]
[Result "0-1"]
[ECO "B01"]
[WhiteElo "1798"]
[BlackElo "1882"]
[Annotator "NA RC"]
[PlyCount "106"]
[EventDate "2021.02.01"]
[EventType "swiss"]
[EventCountry "NET"]
[SourceTitle "playchess.com"]
[Source "ChessBase"]
[SourceQuality "1"]
[TimeControl "1500+10"]

1. e4 {[%emt 0:00:00]} d5 {[%emt 0:00:05]} 2. exd5 {[%emt 0:00:02]} Qxd5 {[%emt 0:00:02]} 3. d4 {[%emt 0:00:02]} Nf6 {[%emt 0:00:05]} 4. Nf3 {[%emt 0:00:04]} a6 {[%emt 0:00:24]} 5. Be2 {[%emt 0:00:08]} Bg4 {[%emt 0:00:06]} 6. c4 {[%emt 0:00:23]} Qd6 {[%emt 0:00:10]} 7. Nc3 {[%emt 0:02:26]} Nc6 {[%emt 0:00:07]} 8. d5 {[%emt 0:00:26]} Bxf3 {[%emt 0:00:46]} 9. Bxf3 {[%emt 0:00:13]} Ne5 {[%emt 0:00:06]} 10. Be2 {[%emt 0:00:12]} e6 {[%emt 0:00:54]} 11. Qa4+ {[%emt 0:04:16]} Ned7 {[%emt 0:01:24]} 12. O-O {[%emt 0:01:57]} exd5 {[%emt 0:01:51]} 13. Nxd5 {[%emt 0:00:12]} Nxd5 {[%emt 0:00:50]} 14. cxd5 {[%emt 0:00:03]} Be7 {[%emt 0:01:27]} 15. Bf4 {[%emt 0:00:28]} Qb6 {[%emt 0:05:17]} 16. Bg4 {[%emt 0:02:00]} O-O-O {[%emt 0:00:56]} 17. Rac1 {[%emt 0:00:32]} Bd6 {[%emt 0:00:37]} 18. Rc2 {[%emt 0:03:21]} Kb8 {[%emt 0:05:40]} 19. Rfc1 {[%emt 0:01:03]} Ne5 {[%emt 0:01:11]} 20. Be2 {[%emt 0:00:31]} Rhe8 {[%emt 0:01:15]} 21. a3 {[%emt 0:04:40]} Nd7 {[%emt 0:02:39]} 22. Bf3 {[%emt 0:04:05]} Nc5 {[%emt 0:01:03]} 23. Qd4 {[%emt 0:00:05]} Bxf4 {[%emt 0:00:49]} 24. Qxf4 {[%emt 0:00:09]} Nd3 {[%emt 0:00:24]} 25. Qxc7+ {[%emt 0:00:42]} (25. Qxf7 $17 Nxc1 26. Rxc1) 25... Qxc7 {[%emt 0:00:05]} 26. Rxc7 {[%emt 0:00:03]} Nxc1 {[%emt 0:00:04]} 27. Rxc1 {[%emt 0:00:03]} Rc8 {[%emt 0:00:07]} 28. Rb1 {[%emt 0:00:35]} Rc2 {[%emt 0:00:07]} 29. h3 {[%emt 0:00:02]} Rec8 {[%emt 0:00:06]} 30. Be4 {[%emt 0:00:57]} Rc1+ {[%emt 0:00:10]} 31. Rxc1 {[%emt 0:00:06]} Rxc1+ {[%emt 0:00:04]} 32. Kh2 {[%emt 0:00:03]} h6 {[%emt 0:00:02]} 33. Kg3 {[%emt 0:00:08]} Kc7 {[%emt 0:00:07]} 34. d6+ {[%emt 0:00:11]} Kxd6 {[%emt 0:00:06]} 35. Bxb7 {[%emt 0:00:02]} a5 {[%emt 0:00:03]} 36. b4 {[%emt 0:00:02]} axb4 {[%emt 0:00:04]} 37. axb4 {[%emt 0:00:02]} Rb1 {[%emt 0:00:07]} 38. Be4 {[%emt 0:00:06]} Rxb4 {[%emt 0:00:05]} 39. f3 {[%emt 0:00:03]} Ke5 {[%emt 0:00:04]} 40. Ba8 {[%emt 0:00:03]} g5 {[%emt 0:00:06]} 41. Kf2 {[%emt 0:00:16]} f5 {[%emt 0:00:07]} 42. g3 {[%emt 0:00:05]} Rb6 {[%emt 0:00:33]} 43. Ke3 {[%emt 0:00:18]} Rb2 {[%emt 0:01:02]} 44. f4+ {[%emt 0:00:10]} Kf6 {[%emt 0:00:05]} 45. Bf3 {[%emt 0:00:08]} Rh2 {[%emt 0:00:28]} 46. g4 {[%emt 0:00:07]} Rxh3 {[%emt 0:00:15]} 47. gxf5 {[%emt 0:00:04]} Kxf5 {[%emt 0:00:04]} 48. fxg5 {[%emt 0:00:01]} hxg5 {[%emt 0:00:09]} 49. Kf2 {[%emt 0:00:02]} Kf4 {[%emt 0:00:10]} 50. Bb7 {[%emt 0:00:05]} Rh2+ {[%emt 0:00:06]} 51. Kg1 {[%emt 0:00:02]} Rb2 {[%emt 0:00:05]} 52. Ba6 {[%emt 0:00:05]} Kg3 {[%emt 0:00:08]} 53. Bf1 {[%emt 0:00:04]} Rb1 {[%emt 0:00:07]} 0-1

[Event "African Online-ch Women 2021"]
[Site "Online"]
[Date "2021.02.01"]
[Round "9.7"]
[White "Botlhole, Kgalalelo"]
[Black "Castro, Neusa Aridas De"]
[Result "1-0"]
[ECO "A14"]
[WhiteElo "1705"]
[BlackElo "1512"]
[Annotator "NA RC"]
[PlyCount "79"]
[EventDate "2021.02.01"]
[EventType "swiss"]
[EventCountry "NET"]
[SourceTitle "playchess.com"]
[Source "ChessBase"]
[SourceQuality "1"]
[TimeControl "1500+10"]

1. c4 {[%emt 0:00:00]} e6 {[%emt 0:00:08]} 2. g3 {[%emt 0:00:03]} d5 {[%emt 0:00:03]} 3. Bg2 {[%emt 0:00:02]} Nf6 {[%emt 0:00:02]} 4. Nf3 {[%emt 0:00:01]} Be7 {[%emt 0:00:04]} 5. O-O {[%emt 0:00:02]} O-O {[%emt 0:00:04]} 6. b3 {[%emt 0:00:09]} Nbd7 {[%emt 0:00:09]} 7. Bb2 {[%emt 0:00:01]} Nb6 {[%emt 0:00:44]} 8. d4 {[%emt 0:00:12]} dxc4 {[%emt 0:00:10]} 9. Nc3 {[%emt 0:00:13]} cxb3 {[%emt 0:00:29]} 10. Qxb3 {[%emt 0:00:07]} Bd7 {[%emt 0:00:33]} 11. Ne5 {[%emt 0:00:07]} Bc8 {[%emt 0:00:16]} 12. Rfd1 {[%emt 0:00:04]} Rb8 {[%emt 0:00:12]} 13. Rac1 {[%emt 0:00:03]} Nfd5 {[%emt 0:00:27]} 14. e4 {[%emt 0:00:12]} Nxc3 {[%emt 0:00:10]} 15. Rxc3 {[%emt 0:00:07]} Bf6 {[%emt 0:00:06]} 16. Nf3 {[%emt 0:00:26]} Bd7 {[%emt 0:00:50]} 17. Rdc1 {[%emt 0:00:40]} Be7 {[%emt 0:01:24]} 18. Qc2 {[%emt 0:00:52]} Bc6 {[%emt 0:00:29]} 19. Ne5 {[%emt 0:00:14]} Ba4 {[%emt 0:01:02]} 20. Qd3 {[%emt 0:00:49]} c6 {[%emt 0:00:14]} 21. Qe3 {[%emt 0:01:01]} Bb4 {[%emt 0:00:33]} 22. Rd3 {[%emt 0:00:09]} Bb5 {[%emt 0:01:18]} 23. Rdd1 {[%emt 0:00:07]} f6 {[%emt 0:00:31]} 24. Nd3 {[%emt 0:00:38]} Be7 {[%emt 0:01:17]} 25. Nc5 {[%emt 0:00:12]} Nc4 {[%emt 0:00:16]} 26. Qb3 {[%emt 0:00:31]} Bxc5 {[%emt 0:02:44]} 27. dxc5 {[%emt 0:00:33]} Qe7 {[%emt 0:02:44]} 28. Rxc4 {[%emt 0:00:24]} Bxc4 {[%emt 0:00:04]} 29. Qxc4 {[%emt 0:00:02]} Kh8 {[%emt 0:00:11]} 30. e5 {[%emt 0:00:26]} f5 {[%emt 0:00:13]} 31. Rd6 {[%emt 0:00:07]} Rfd8 {[%emt 0:00:19]} 32. Bf1 {[%emt 0:00:33]} a6 {[%emt 0:00:09]} 33. Rxe6 {[%emt 0:00:35]} Qf8 {[%emt 0:00:18]} 34. Rd6 {[%emt 0:00:22]} Re8 {[%emt 0:00:08]} 35. Qd4 {[%emt 0:00:13]} Qe7 {[%emt 0:00:25]} 36. Rd7 {[%emt 0:01:24]} Qg5 {[%emt 0:00:31]} 37. f4 {[%emt 0:00:31]} Qg6 {[%emt 0:00:07]} 38. Rd6 {[%emt 0:00:34]} Qg4 {[%emt 0:00:19]} 39. Kg2 {[%emt 0:00:24]} h5 {[%emt 0:00:07]} 40. h3 {[%emt 0:00:13]} 1-0